[Event "Early-Titled-Tuesday-Blitz-June-18-2024"]
[Site "Chess.com"]
[Date "2024.06.18"]
[Round "1"]
[White "Smiechu"]
[Black "KogotBobra17"]
[Result "0-1"]
[WhiteElo "2359"]
[BlackElo "2667"]
[TimeControl "180+1"]
[EndTime "8:07:37 PDT"]
[Termination "KogotBobra17 won on time"]

1. e4 {[%clk 0:03:00.9]} 1... c5 {[%clk 0:02:59]} 2. Nf3 {[%clk 0:02:58.7]} 2...
Nc6 {[%clk 0:02:59.1]} 3. d4 {[%clk 0:02:57.8]} 3... cxd4 {[%clk 0:03:00]} 4.
Nxd4 {[%clk 0:02:56.4]} 4... Nf6 {[%clk 0:03:00.7]} 5. Nc3 {[%clk 0:02:55.6]}
5... e5 {[%clk 0:03:01.3]} 6. Ndb5 {[%clk 0:02:55.3]} 6... d6 {[%clk 0:03:01.7]}
7. Nd5 {[%clk 0:02:55.8]} 7... Nxd5 {[%clk 0:03:01.7]} 8. exd5 {[%clk
0:02:56.7]} 8... Nb8 {[%clk 0:03:02.2]} 9. a4 {[%clk 0:02:57.1]} 9... Be7 {[%clk
0:02:56.7]} 10. Be2 {[%clk 0:02:57.2]} 10... O-O {[%clk 0:02:56.3]} 11. O-O
{[%clk 0:02:57.7]} 11... f5 {[%clk 0:02:55.6]} 12. f4 {[%clk 0:02:58]} 12... Bf6
{[%clk 0:02:37.9]} 13. c3 {[%clk 0:02:55.7]} 13... a6 {[%clk 0:02:29.1]} 14. Na3
{[%clk 0:02:54.8]} 14... Nd7 {[%clk 0:02:29.2]} 15. Nc4 {[%clk 0:02:49.3]} 15...
Qc7 {[%clk 0:02:28.4]} 16. a5 {[%clk 0:02:41.1]} 16... b5 {[%clk 0:02:26.6]} 17.
axb6 {[%clk 0:02:40.4]} 17... Nxb6 {[%clk 0:02:26.9]} 18. Na5 {[%clk 0:02:12.4]}
18... Kh8 {[%clk 0:02:00.5]} 19. Kh1 {[%clk 0:02:08.1]} 19... Bb7 {[%clk
0:02:00.1]} 20. Nxb7 {[%clk 0:02:04.9]} 20... Qxb7 {[%clk 0:02:01]} 21. c4
{[%clk 0:02:01.4]} 21... Nd7 {[%clk 0:01:57.7]} 22. fxe5 {[%clk 0:01:50.3]}
22... Bxe5 {[%clk 0:01:56.8]} 23. Rb1 {[%clk 0:01:44]} 23... Nc5 {[%clk
0:01:56.8]} 24. b4 {[%clk 0:01:42.3]} 24... Ne4 {[%clk 0:01:56.6]} 25. Bb2
{[%clk 0:01:35.7]} 25... Bxb2 {[%clk 0:01:25]} 26. Rxb2 {[%clk 0:01:35.4]} 26...
a5 {[%clk 0:01:25.9]} 27. Qe1 {[%clk 0:01:14.3]} 27... axb4 {[%clk 0:01:22]} 28.
Rxb4 {[%clk 0:01:13.7]} 28... Qa7 {[%clk 0:01:20.3]} 29. Bd3 {[%clk 0:01:09.5]}
29... Qd4 {[%clk 0:01:09.8]} 30. Bxe4 {[%clk 0:01:07]} 30... fxe4 {[%clk
0:01:10.7]} 31. Rxf8+ {[%clk 0:01:01.4]} 31... Rxf8 {[%clk 0:01:11.6]} 32. h3
{[%clk 0:01:01.6]} 32... e3 {[%clk 0:01:09.5]} 33. Qe2 {[%clk 0:00:54.3]} 33...
h6 {[%clk 0:00:43.3]} 34. Rb3 {[%clk 0:00:50.3]} 34... Re8 {[%clk 0:00:43.4]}
35. Qh5 {[%clk 0:00:49.4]} 35... Qe4 {[%clk 0:00:33.8]} 36. Qe2 {[%clk
0:00:48.2]} 36... Qf4 {[%clk 0:00:30.8]} 37. Rb1 {[%clk 0:00:42.6]} 37... Re4
{[%clk 0:00:23.2]} 38. Rf1 {[%clk 0:00:39.6]} 38... Qe5 {[%clk 0:00:23.6]} 39.
Rf3 {[%clk 0:00:33.5]} 39... Qd4 {[%clk 0:00:23.7]} 40. Qf1 {[%clk 0:00:21.7]}
40... Kh7 {[%clk 0:00:23.9]} 41. Rf8 {[%clk 0:00:17.4]} 41... Qe5 {[%clk
0:00:23.8]} 42. Qf7 {[%clk 0:00:16]} 42... e2 {[%clk 0:00:15.4]} 43. Qg8+ {[%clk
0:00:16]} 43... Kg6 {[%clk 0:00:15.8]} 44. Qf7+ {[%clk 0:00:15.1]} 44... Kg5
{[%clk 0:00:16.3]} 0-1

[Event "Early-Titled-Tuesday-Blitz-June-18-2024"]
[Site "Chess.com"]
[Date "2024.06.18"]
[Round "1"]
[White "DanyKopy"]
[Black "FLYD"]
[Result "0-1"]
[WhiteElo "2556"]
[BlackElo "2159"]
[TimeControl "180+1"]
[EndTime "8:07:37 PDT"]
[Termination "FLYD won on time"]

1. Nf3 {[%clk 0:02:59.9]} 1... Nf6 {[%clk 0:02:58.3]} 2. c4 {[%clk 0:02:58.1]}
2... d5 {[%clk 0:02:54.9]} 3. cxd5 {[%clk 0:02:55]} 3... c6 {[%clk 0:02:55]} 4.
dxc6 {[%clk 0:02:52.9]} 4... Nxc6 {[%clk 0:02:55.9]} 5. g3 {[%clk 0:02:46.9]}
5... e5 {[%clk 0:02:54.4]} 6. d3 {[%clk 0:02:42]} 6... Bc5 {[%clk 0:02:53.6]} 7.
Nc3 {[%clk 0:02:32.8]} 7... Bg4 {[%clk 0:02:47.1]} 8. Bg2 {[%clk 0:02:31.7]}
8... h6 {[%clk 0:02:31]} 9. O-O {[%clk 0:02:30.1]} 9... Qd7 {[%clk 0:02:27.8]}
10. Qa4 {[%clk 0:02:16.1]} 10... O-O-O {[%clk 0:02:25.3]} 11. Be3 {[%clk
0:01:56.5]} 11... Bxe3 {[%clk 0:02:11.7]} 12. fxe3 {[%clk 0:01:57.4]} 12... Kb8
{[%clk 0:02:10.2]} 13. Rac1 {[%clk 0:01:55]} 13... h5 {[%clk 0:02:09.4]} 14. Nh4
{[%clk 0:01:25.5]} 14... Rc8 {[%clk 0:01:54.6]} 15. b4 {[%clk 0:01:04.6]} 15...
Bh3 {[%clk 0:01:33.9]} 16. b5 {[%clk 0:01:02.8]} 16... Bxg2 {[%clk 0:01:31.1]}
17. Kxg2 {[%clk 0:00:57.1]} 17... Ne7 {[%clk 0:01:29.5]} 18. b6 {[%clk
0:00:39.9]} 18... axb6 {[%clk 0:01:17.7]} 19. Nb5 {[%clk 0:00:31.4]} 19... Nc6
{[%clk 0:01:12.8]} 20. Nf5 {[%clk 0:00:27.8]} 20... Nd5 {[%clk 0:00:59.6]} 21.
e4 {[%clk 0:00:20.9]} 21... Ndb4 {[%clk 0:00:50.6]} 22. Nfd6 {[%clk 0:00:18.2]}
22... Rcf8 {[%clk 0:00:49]} 23. Rxc6 {[%clk 0:00:17.5]} 23... Nxc6 {[%clk
0:00:29.1]} 24. Rc1 {[%clk 0:00:14.6]} 24... Rh6 {[%clk 0:00:20.5]} 25. Rxc6
{[%clk 0:00:13.3]} 25... bxc6 {[%clk 0:00:20.4]} 26. Qa6 {[%clk 0:00:13.4]}
26... Rxd6 {[%clk 0:00:16.7]} 27. Qxb6+ {[%clk 0:00:13]} 27... Qb7 {[%clk
0:00:16.9]} 28. Qc5 {[%clk 0:00:08.5]} 28... Rdd8 {[%clk 0:00:07.9]} 29. Qxe5+
{[%clk 0:00:08.7]} 29... Ka8 {[%clk 0:00:06.5]} 30. Nc7+ {[%clk 0:00:07.3]}
30... Ka7 {[%clk 0:00:07.1]} 31. Qa5+ {[%clk 0:00:06.7]} 31... Kb8 {[%clk
0:00:07.8]} 32. Na6+ {[%clk 0:00:05.7]} 32... Kc8 {[%clk 0:00:08.4]} 33. Qf5+
{[%clk 0:00:05.4]} 33... Qd7 {[%clk 0:00:08.2]} 34. Qe5 {[%clk 0:00:05.1]} 34...
Qb7 {[%clk 0:00:05.2]} 35. Qf5+ {[%clk 0:00:05.2]} 35... Rd7 {[%clk 0:00:05.2]}
36. Nc5 {[%clk 0:00:05.2]} 36... Qc7 {[%clk 0:00:04.3]} 37. a4 {[%clk
0:00:02.6]} 37... g6 {[%clk 0:00:04]} 38. Qf6 {[%clk 0:00:01.7]} 38... Rd6
{[%clk 0:00:03]} 0-1

[Event "Early-Titled-Tuesday-Blitz-June-18-2024"]
[Site "Chess.com"]
[Date "2024.06.18"]
[Round "1"]
[White "PeshkaCh"]
[Black "esskeettit"]
[Result "1/2-1/2"]
[WhiteElo "2867"]
[BlackElo "2506"]
[TimeControl "180+1"]
[EndTime "8:07:38 PDT"]
[Termination "Game drawn by repetition"]

1. Nf3 {[%clk 0:03:00.9]} 1... d5 {[%clk 0:02:59.2]} 2. d4 {[%clk 0:03:00]} 2...
Nf6 {[%clk 0:02:58.8]} 3. c4 {[%clk 0:03:00.1]} 3... e6 {[%clk 0:02:57.3]} 4.
Nc3 {[%clk 0:02:59.4]} 4... Nbd7 {[%clk 0:02:44.6]} 5. Bg5 {[%clk 0:02:55.9]}
5... h6 {[%clk 0:02:28.4]} 6. Bh4 {[%clk 0:02:53.1]} 6... Be7 {[%clk 0:02:21.5]}
7. e3 {[%clk 0:02:52.6]} 7... dxc4 {[%clk 0:02:12.5]} 8. Bxc4 {[%clk 0:02:52.5]}
8... Nb6 {[%clk 0:02:12.5]} 9. Bd3 {[%clk 0:02:51.5]} 9... Nbd5 {[%clk
0:02:07.6]} 10. O-O {[%clk 0:02:48.8]} 10... O-O {[%clk 0:01:53.4]} 11. Rc1
{[%clk 0:02:47.2]} 11... c6 {[%clk 0:01:47.3]} 12. Ne5 {[%clk 0:02:46.4]} 12...
Nd7 {[%clk 0:01:24.1]} 13. Bg3 {[%clk 0:02:34.5]} 13... Nxe5 {[%clk 0:01:22.7]}
14. Bxe5 {[%clk 0:02:35.4]} 14... Bd6 {[%clk 0:01:18.7]} 15. Bxd6 {[%clk
0:02:19.7]} 15... Qxd6 {[%clk 0:01:19.6]} 16. Qf3 {[%clk 0:02:20.3]} 16... Nxc3
{[%clk 0:01:16.4]} 17. Rxc3 {[%clk 0:02:20.1]} 17... Qd5 {[%clk 0:01:10.1]} 18.
a4 {[%clk 0:01:06.6]} 18... Qxf3 {[%clk 0:00:52.1]} 19. gxf3 {[%clk 0:01:07.5]}
19... Rd8 {[%clk 0:00:52.4]} 20. b4 {[%clk 0:01:06.5]} 20... Bd7 {[%clk
0:00:45.4]} 21. Rb1 {[%clk 0:01:06.8]} 21... a6 {[%clk 0:00:42.6]} 22. f4 {[%clk
0:01:05.9]} 22... Kf8 {[%clk 0:00:42.6]} 23. Kg2 {[%clk 0:01:02.3]} 23... Ke7
{[%clk 0:00:42.9]} 24. Kf3 {[%clk 0:01:02.9]} 24... Rg8 {[%clk 0:00:27.9]} 25.
b5 {[%clk 0:00:58.9]} 25... axb5 {[%clk 0:00:27.4]} 26. axb5 {[%clk 0:00:59.8]}
26... Ra2 {[%clk 0:00:15.2]} 27. bxc6 {[%clk 0:00:26.1]} 27... Bxc6+ {[%clk
0:00:15]} 28. Be4 {[%clk 0:00:26.8]} 28... Bxe4+ {[%clk 0:00:13]} 29. Kxe4
{[%clk 0:00:27.7]} 29... Rxf2 {[%clk 0:00:10.3]} 30. Rxb7+ {[%clk 0:00:28.1]}
30... Kf6 {[%clk 0:00:10.5]} 31. Rcc7 {[%clk 0:00:23.6]} 31... Rf8 {[%clk
0:00:10.8]} 32. h4 {[%clk 0:00:19.9]} 32... Rh2 {[%clk 0:00:11.3]} 33. Rb6
{[%clk 0:00:13.9]} 33... Rxh4 {[%clk 0:00:11]} 34. d5 {[%clk 0:00:14.6]} 34...
g5 {[%clk 0:00:10.5]} 35. dxe6 {[%clk 0:00:15.1]} 35... fxe6 {[%clk 0:00:10.2]}
36. Rcc6 {[%clk 0:00:15.5]} 36... gxf4 {[%clk 0:00:07.2]} 37. Rxe6+ {[%clk
0:00:15.4]} 37... Kg7 {[%clk 0:00:07.6]} 38. Rg6+ {[%clk 0:00:14.9]} 38... Kh7
{[%clk 0:00:07.1]} 39. exf4 {[%clk 0:00:09.6]} 39... Rhxf4+ {[%clk 0:00:05.4]}
40. Ke3 {[%clk 0:00:09.6]} 40... Rf3+ {[%clk 0:00:05.7]} 41. Ke2 {[%clk
0:00:08.2]} 41... Rf2+ {[%clk 0:00:06.2]} 42. Ke1 {[%clk 0:00:08.4]} 42... Rf1+
{[%clk 0:00:06.7]} 43. Kd2 {[%clk 0:00:09]} 43... R1f2+ {[%clk 0:00:07]} 44. Kd3
{[%clk 0:00:09.6]} 44... R2f3+ {[%clk 0:00:07.4]} 45. Ke4 {[%clk 0:00:10.3]}
45... R3f4+ {[%clk 0:00:07.6]} 46. Ke3 {[%clk 0:00:10.7]} 46... Rf3+ {[%clk
0:00:08]} 47. Ke4 {[%clk 0:00:11.2]} 47... R3f4+ {[%clk 0:00:08.3]} 1/2-1/2

[Event "Early-Titled-Tuesday-Blitz-June-18-2024"]
[Site "Chess.com"]
[Date "2024.06.18"]
[Round "1"]
[White "TimGrutter03"]
[Black "lucena125"]
[Result "1-0"]
[WhiteElo "2619"]
[BlackElo "2260"]
[TimeControl "180+1"]
[EndTime "8:07:38 PDT"]
[Termination "TimGrutter03 won by checkmate"]

1. e4 {[%clk 0:03:00.2]} 1... c5 {[%clk 0:02:59.1]} 2. Nf3 {[%clk 0:03:00.4]}
2... Nc6 {[%clk 0:02:59.4]} 3. c3 {[%clk 0:03:00.7]} 3... d6 {[%clk 0:02:54.8]}
4. d4 {[%clk 0:02:59.2]} 4... cxd4 {[%clk 0:02:54.6]} 5. cxd4 {[%clk 0:03:00.1]}
5... g6 {[%clk 0:02:54.3]} 6. Nc3 {[%clk 0:02:57.1]} 6... Bg7 {[%clk 0:02:54]}
7. h3 {[%clk 0:02:56.9]} 7... Nf6 {[%clk 0:02:52.7]} 8. Be2 {[%clk 0:02:52.4]}
8... O-O {[%clk 0:02:52.5]} 9. O-O {[%clk 0:02:51.6]} 9... e5 {[%clk 0:02:52.3]}
10. d5 {[%clk 0:02:47.6]} 10... Ne7 {[%clk 0:02:52.4]} 11. Be3 {[%clk
0:02:44.3]} 11... a6 {[%clk 0:02:51.9]} 12. Rc1 {[%clk 0:02:41.8]} 12... Bd7
{[%clk 0:02:51.3]} 13. Nd2 {[%clk 0:02:41]} 13... Ne8 {[%clk 0:02:49.1]} 14. Nc4
{[%clk 0:02:34.8]} 14... f5 {[%clk 0:02:40.3]} 15. f3 {[%clk 0:02:33.4]} 15...
b5 {[%clk 0:02:31.4]} 16. Nb6 {[%clk 0:02:29.4]} 16... Rb8 {[%clk 0:02:31.6]}
17. Nxd7 {[%clk 0:02:26.6]} 17... Qxd7 {[%clk 0:02:32.5]} 18. b4 {[%clk
0:01:57.2]} 18... Nf6 {[%clk 0:01:54.7]} 19. Qd3 {[%clk 0:01:36.9]} 19... Nh5
{[%clk 0:01:51.8]} 20. a4 {[%clk 0:01:28.7]} 20... Ng3 {[%clk 0:01:42.3]} 21.
Rfe1 {[%clk 0:01:20.8]} 21... Nxe2+ {[%clk 0:01:19.5]} 22. Rxe2 {[%clk
0:01:02.2]} 22... bxa4 {[%clk 0:01:20.4]} 23. Rb2 {[%clk 0:00:54.2]} 23... f4
{[%clk 0:00:40.2]} 24. Bf2 {[%clk 0:00:50.8]} 24... g5 {[%clk 0:00:40.5]} 25.
Qxa6 {[%clk 0:00:48.6]} 25... h5 {[%clk 0:00:40.7]} 26. Qxa4 {[%clk 0:00:48.1]}
26... Qb7 {[%clk 0:00:24.1]} 27. b5 {[%clk 0:00:41.4]} 27... g4 {[%clk
0:00:24.1]} 28. b6 {[%clk 0:00:26]} 28... gxf3 {[%clk 0:00:21.6]} 29. gxf3
{[%clk 0:00:26]} 29... Bf6 {[%clk 0:00:21.2]} 30. Nb5 {[%clk 0:00:18.2]} 30...
Kh8 {[%clk 0:00:19.2]} 31. Rc7 {[%clk 0:00:16.8]} 31... Rg8+ {[%clk 0:00:17]}
32. Kf1 {[%clk 0:00:16]} 32... Qa8 {[%clk 0:00:17.5]} 33. Ra7 {[%clk 0:00:14.4]}
33... Qxa7 {[%clk 0:00:14]} 34. bxa7 {[%clk 0:00:14.2]} 34... Ra8 {[%clk
0:00:14.9]} 35. Nc7 {[%clk 0:00:14.3]} 35... Rxa7 {[%clk 0:00:15.3]} 36. Qxa7
{[%clk 0:00:14.3]} 36... Rc8 {[%clk 0:00:15]} 37. Rb8 {[%clk 0:00:12.3]} 37...
Rxb8 {[%clk 0:00:15.2]} 38. Qxb8+ {[%clk 0:00:13.2]} 38... Kg7 {[%clk 0:00:16]}
39. Ne6+ {[%clk 0:00:13.6]} 39... Kf7 {[%clk 0:00:16.5]} 40. Qf8+ {[%clk
0:00:14.2]} 40... Kg6 {[%clk 0:00:16.8]} 41. Qe8+ {[%clk 0:00:13.5]} 41... Kh7
{[%clk 0:00:16.9]} 42. Nf8+ {[%clk 0:00:13.7]} 42... Kg8 {[%clk 0:00:17]} 43.
Nd7+ {[%clk 0:00:13.5]} 43... Kg7 {[%clk 0:00:17]} 44. Nxf6 {[%clk 0:00:14.4]}
44... Kxf6 {[%clk 0:00:17.2]} 45. Bh4+ {[%clk 0:00:14.9]} 45... Kg7 {[%clk
0:00:17.5]} 46. Qxe7+ {[%clk 0:00:15.4]} 46... Kh8 {[%clk 0:00:18.4]} 47. Qf6+
{[%clk 0:00:14.8]} 47... Kg8 {[%clk 0:00:19.3]} 48. Qg6+ {[%clk 0:00:14.2]}
48... Kf8 {[%clk 0:00:18.6]} 49. Qxd6+ {[%clk 0:00:14.7]} 49... Kg8 {[%clk
0:00:19]} 50. Qe6+ {[%clk 0:00:14.9]} 50... Kf8 {[%clk 0:00:19.9]} 51. Bf6
{[%clk 0:00:14.4]} 51... h4 {[%clk 0:00:20.1]} 52. Qe7+ {[%clk 0:00:14.8]} 52...
Kg8 {[%clk 0:00:21]} 53. Qg7# {[%clk 0:00:15.7]} 1-0

[Event "Early-Titled-Tuesday-Blitz-June-18-2024"]
[Site "Chess.com"]
[Date "2024.06.18"]
[Round "1"]
[White "artin10862"]
[Black "ploxoi"]
[Result "1-0"]
[WhiteElo "2928"]
[BlackElo "2509"]
[TimeControl "180+1"]
[EndTime "8:07:41 PDT"]
[Termination "artin10862 won by resignation"]

1. Nf3 {[%clk 0:02:59.6]} 1... d5 {[%clk 0:02:59.8]} 2. b3 {[%clk 0:02:57.8]}
2... Nf6 {[%clk 0:02:58]} 3. Bb2 {[%clk 0:02:57.3]} 3... Bf5 {[%clk 0:02:58.3]}
4. Nh4 {[%clk 0:02:55.3]} 4... Bc8 {[%clk 0:02:55.2]} 5. e3 {[%clk 0:02:53.9]}
5... c6 {[%clk 0:02:53.5]} 6. c4 {[%clk 0:02:53.6]} 6... e6 {[%clk 0:02:50.6]}
7. Nf3 {[%clk 0:02:48.9]} 7... Bd6 {[%clk 0:02:50.1]} 8. Nc3 {[%clk 0:02:45.5]}
8... Nbd7 {[%clk 0:02:49.7]} 9. d4 {[%clk 0:02:39.9]} 9... O-O {[%clk
0:02:47.7]} 10. Be2 {[%clk 0:02:39.8]} 10... b6 {[%clk 0:02:47.6]} 11. O-O
{[%clk 0:02:39.5]} 11... Bb7 {[%clk 0:02:48]} 12. Qc2 {[%clk 0:02:39.4]} 12...
Qe7 {[%clk 0:02:46.4]} 13. Rac1 {[%clk 0:02:37.6]} 13... h6 {[%clk 0:02:44.2]}
14. Rfd1 {[%clk 0:02:38]} 14... Rfe8 {[%clk 0:02:40.4]} 15. e4 {[%clk
0:02:36.5]} 15... dxe4 {[%clk 0:02:41.3]} 16. Nxe4 {[%clk 0:02:37.2]} 16... Nxe4
{[%clk 0:02:42.2]} 17. Qxe4 {[%clk 0:02:37.8]} 17... Nf6 {[%clk 0:02:42.7]} 18.
Qh4 {[%clk 0:02:26.9]} 18... c5 {[%clk 0:02:42.8]} 19. Ne5 {[%clk 0:02:19.9]}
19... Rad8 {[%clk 0:02:34.3]} 20. Bf3 {[%clk 0:02:16.4]} 20... Qc7 {[%clk
0:01:51.3]} 21. Bxb7 {[%clk 0:02:03.2]} 21... Qxb7 {[%clk 0:01:52.2]} 22. Ng4
{[%clk 0:01:52.2]} 22... Nxg4 {[%clk 0:01:32.2]} 23. Qxg4 {[%clk 0:01:51.9]}
23... cxd4 {[%clk 0:01:31.4]} 24. Bxd4 {[%clk 0:01:51.7]} 24... e5 {[%clk
0:01:31.3]} 25. Be3 {[%clk 0:01:49]} 25... Qd7 {[%clk 0:01:17.5]} 26. Qxd7
{[%clk 0:01:25.4]} 26... Rxd7 {[%clk 0:01:18.4]} 27. Rd5 {[%clk 0:01:26.1]}
27... Red8 {[%clk 0:01:08.9]} 28. Rcd1 {[%clk 0:01:25.4]} 28... Kf8 {[%clk
0:01:09.1]} 29. c5 {[%clk 0:00:54]} 29... bxc5 {[%clk 0:01:09.2]} 30. Bxc5
{[%clk 0:00:52.8]} 30... Ke7 {[%clk 0:01:09.4]} 31. Rxd6 {[%clk 0:00:50.8]}
31... Rxd6 {[%clk 0:01:09.7]} 32. Kf1 {[%clk 0:00:47.6]} 32... Ke6 {[%clk
0:01:08.6]} 33. Rxd6+ {[%clk 0:00:41.9]} 33... Rxd6 {[%clk 0:01:09.5]} 34. Bxd6
{[%clk 0:00:42.8]} 34... Kxd6 {[%clk 0:01:10.4]} 35. Ke2 {[%clk 0:00:43.4]}
35... Kc5 {[%clk 0:01:03.8]} 36. a3 {[%clk 0:00:43.3]} 36... Kd4 {[%clk
0:01:03.1]} 37. Kd2 {[%clk 0:00:42.2]} 37... f5 {[%clk 0:00:58.2]} 38. h4 {[%clk
0:00:37.2]} 38... g5 {[%clk 0:00:57.2]} 39. hxg5 {[%clk 0:00:33.6]} 39... hxg5
{[%clk 0:00:58.1]} 40. f3 {[%clk 0:00:32]} 40... a5 {[%clk 0:00:51.2]} 41. Kc2
{[%clk 0:00:28.8]} 41... g4 {[%clk 0:00:48.4]} 42. fxg4 {[%clk 0:00:26.7]} 42...
fxg4 {[%clk 0:00:49.3]} 43. Kd2 {[%clk 0:00:24]} 43... g3 {[%clk 0:00:18.7]} 44.
b4 {[%clk 0:00:22.7]} 44... axb4 {[%clk 0:00:17.9]} 45. axb4 {[%clk 0:00:23.6]}
45... Kc4 {[%clk 0:00:17.1]} 46. Ke3 {[%clk 0:00:23.1]} 46... Kxb4 {[%clk
0:00:17.4]} 47. Ke4 {[%clk 0:00:22.9]} 47... Kc5 {[%clk 0:00:07.6]} 48. Kxe5
{[%clk 0:00:22.8]} 48... Kc6 {[%clk 0:00:08.1]} 49. Kf4 {[%clk 0:00:23.5]} 49...
Kd6 {[%clk 0:00:08.7]} 50. Kxg3 {[%clk 0:00:23.7]} 50... Ke6 {[%clk 0:00:09.6]}
1-0

[Event "Early-Titled-Tuesday-Blitz-June-18-2024"]
[Site "Chess.com"]
[Date "2024.06.18"]
[Round "1"]
[White "VaglioSagan"]
[Black "MightyGMpretender"]
[Result "0-1"]
[WhiteElo "2485"]
[BlackElo "2856"]
[TimeControl "180+1"]
[EndTime "8:07:41 PDT"]
[Termination "MightyGMpretender won by checkmate"]

1. d4 {[%clk 0:02:55.6]} 1... Nf6 {[%clk 0:02:58]} 2. c4 {[%clk 0:02:50.8]} 2...
e6 {[%clk 0:02:57.7]} 3. Nf3 {[%clk 0:02:48.6]} 3... b6 {[%clk 0:02:49.5]} 4. e3
{[%clk 0:02:44.3]} 4... Bb7 {[%clk 0:02:49.9]} 5. Bd3 {[%clk 0:02:44.1]} 5...
Ne4 {[%clk 0:02:44.8]} 6. Nc3 {[%clk 0:02:20.5]} 6... Nxc3 {[%clk 0:02:43.4]} 7.
bxc3 {[%clk 0:02:20.2]} 7... Be7 {[%clk 0:02:43.6]} 8. O-O {[%clk 0:02:19.3]}
8... d6 {[%clk 0:02:42.8]} 9. e4 {[%clk 0:02:19.1]} 9... Nd7 {[%clk 0:02:43.3]}
10. a4 {[%clk 0:02:17.4]} 10... a5 {[%clk 0:02:42.6]} 11. Re1 {[%clk 0:02:01.2]}
11... e5 {[%clk 0:02:42.6]} 12. Be3 {[%clk 0:01:50.8]} 12... O-O {[%clk
0:02:42.1]} 13. Qc2 {[%clk 0:01:50.9]} 13... Bc6 {[%clk 0:02:39.7]} 14. Nd2
{[%clk 0:01:47.3]} 14... Re8 {[%clk 0:02:39]} 15. h3 {[%clk 0:01:46.5]} 15...
Bg5 {[%clk 0:02:38.7]} 16. Nf1 {[%clk 0:01:42.6]} 16... Qf6 {[%clk 0:02:33]} 17.
Rad1 {[%clk 0:01:38.1]} 17... h6 {[%clk 0:02:22.4]} 18. Ng3 {[%clk 0:01:20.1]}
18... g6 {[%clk 0:02:17.9]} 19. c5 {[%clk 0:01:12.7]} 19... bxc5 {[%clk
0:02:15.9]} 20. d5 {[%clk 0:01:12.7]} 20... Bb7 {[%clk 0:02:16]} 21. Bb5 {[%clk
0:01:12.7]} 21... Bc8 {[%clk 0:02:11.3]} 22. Rb1 {[%clk 0:01:11.9]} 22... Rb8
{[%clk 0:02:03.7]} 23. c4 {[%clk 0:01:05.5]} 23... Bxe3 {[%clk 0:02:00.5]} 24.
Rxe3 {[%clk 0:01:04]} 24... Rf8 {[%clk 0:01:55.5]} 25. Qd2 {[%clk 0:01:03.2]}
25... Nb6 {[%clk 0:01:50.5]} 26. Rf3 {[%clk 0:01:00]} 26... Qg5 {[%clk
0:01:47.2]} 27. Qe1 {[%clk 0:00:54.4]} 27... h5 {[%clk 0:01:44.1]} 28. Rfb3
{[%clk 0:00:53]} 28... h4 {[%clk 0:01:42.5]} 29. Nf1 {[%clk 0:00:53.6]} 29... f5
{[%clk 0:01:34.9]} 30. f3 {[%clk 0:00:40.8]} 30... fxe4 {[%clk 0:01:27.9]} 31.
fxe4 {[%clk 0:00:41.7]} 31... Rf4 {[%clk 0:01:26.6]} 32. Nh2 {[%clk 0:00:39]}
32... Bb7 {[%clk 0:01:21.7]} 33. Nf3 {[%clk 0:00:39]} 33... Qg3 {[%clk
0:01:19.4]} 34. Qxa5 {[%clk 0:00:27.7]} 34... Rbf8 {[%clk 0:01:18.9]} 35. Qc3
{[%clk 0:00:12.6]} 35... Bc8 {[%clk 0:01:12.2]} 36. a5 {[%clk 0:00:12.8]} 36...
Bxh3 {[%clk 0:01:10.8]} 37. Nxh4 {[%clk 0:00:13.3]} 37... Qf2+ {[%clk
0:01:01.7]} 38. Kh2 {[%clk 0:00:12.5]} 38... Bxg2 {[%clk 0:00:57.8]} 39. Nxg2
{[%clk 0:00:12.3]} 39... Rh4+ {[%clk 0:00:57.6]} 40. Qh3 {[%clk 0:00:11]} 40...
Rxh3+ {[%clk 0:00:57]} 41. Rxh3 {[%clk 0:00:11.9]} 41... Nc8 {[%clk 0:00:55.1]}
42. Bd7 {[%clk 0:00:11.7]} 42... Kg7 {[%clk 0:00:49.3]} 43. Be6 {[%clk
0:00:11.9]} 43... Qa2 {[%clk 0:00:46.7]} 44. Rbb3 {[%clk 0:00:12.1]} 44... Qxa5
{[%clk 0:00:40.9]} 45. Rbg3 {[%clk 0:00:12.8]} 45... Ne7 {[%clk 0:00:40.4]} 46.
Nh4 {[%clk 0:00:13.1]} 46... Rf2+ {[%clk 0:00:38.1]} 47. Rg2 {[%clk 0:00:13.7]}
47... Rxg2+ {[%clk 0:00:37]} 48. Nxg2 {[%clk 0:00:14.6]} 48... Qd2 {[%clk
0:00:37]} 49. Rg3 {[%clk 0:00:13.7]} 49... Qh6+ {[%clk 0:00:36.7]} 50. Kg1
{[%clk 0:00:14.3]} 50... Qc1+ {[%clk 0:00:37.3]} 51. Kh2 {[%clk 0:00:14.4]}
51... Qxc4 {[%clk 0:00:37.8]} 52. Ne3 {[%clk 0:00:15.3]} 52... Qe2+ {[%clk
0:00:37]} 53. Kh3 {[%clk 0:00:15.5]} 53... c4 {[%clk 0:00:36.8]} 54. Bg4 {[%clk
0:00:15.2]} 54... Qe1 {[%clk 0:00:28.9]} 55. Nxc4 {[%clk 0:00:15.1]} 55... Qh1#
{[%clk 0:00:28.9]} 0-1